{"text_format":"3","workbook":"xlsx","n_sheets":7,"sheets":["Раздел0","Раздел 1","Лист6","Раздел 2","Раздел 3","Раздел 4","Раздел 5"],"not_rendered":{"defined_names":1,"comments":4},"read":"whole","date_system":"1900"}

{"sheet":"Раздел0","index":0,"n_rows":23,"n_cols":115,"rows_kept":23,"merged":[[3,17,3,105],[6,22,6,103],[7,22,7,103],[8,22,8,103],[9,0,10,46],[9,47,10,121],[11,0,12,17],[11,18,12,121],[13,0,14,17],[13,18,13,121],[14,18,14,62],[14,63,14,121],[15,0,15,17],[15,18,15,62],[15,63,15,121],[16,0,16,17],[16,18,16,62],[16,63,16,121],[18,118,18,121],[19,1,19,81],[19,82,19,83],[19,84,19,121],[20,1,20,9],[20,11,20,80],[20,86,20,103],[20,105,20,111],[20,114,20,117],[21,1,21,80],[21,82,21,121],[22,1,22,9],[22,11,22,48],[22,52,22,69],[22,72,22,83]]}
[]
[]
[]
[{"$nulls":17},"ВОЗМОЖНО ПРЕДОСТАВЛЕНИЕ В ЭЛЕКТРОННОМ ВИДЕ"]
[]
[]
[{"$nulls":22},"Сводные сведения о несчастных случаях,"]
[{"$nulls":22},"произошедших на занятиях физической культурой и спортом в общеобразовательных организациях Российской Федерации"]
[{"$nulls":22},"  за 2019-2020 учебный год"]
[" Наименование отчитывающейся организации",{"$nulls":46},"Муниципальное казенное учреждение «Управление образования Исполнительного комитета  Заинского муниципального района Республики Татарстан»"]
[]
[" Почтовый адрес",{"$nulls":17},"423520, Республика Татарстан г. Заинск, ул. Крупской,д. 6"]
[]
["Код\nформы\nпо ОКУД",{"$nulls":17},"Код"]
[{"$nulls":18},"отчитывающейся организации\nпо ОКПО"]
[1,{"$nulls":17},2,{"$nulls":44},3]
[{"$nulls":18},"90010367"]
[]
[]
[null,"Должностное лицо, ответственное за предоставление статистической информации:",{"$nulls":80}," Должность:    ",null,"Методист по воспитанию и дополнительному образованию детей"]
[null,"Ф.И.О.   __________________________________________________________________",{"$nulls":9},"Гатина Лилия Данияловна",{"$nulls":74},6,{"$nulls":18},2020,{"$nulls":8},"год"]
[{"$nulls":82},"             (подпись)                                                   (дата) "]
[null," E-mail:                                                                                  ",{"$nulls":9},"daniyalovna76@mail.ru ",{"$nulls":40},"Телефон:",{"$nulls":19},"8(8555)830269"]

{"sheet":"Раздел 1","index":1,"n_rows":7,"n_cols":15,"rows_kept":7,"merged":[[0,0,5,0],[0,1,0,14],[1,1,1,14],[2,1,2,7],[2,8,2,14],[3,1,4,1],[3,2,3,4],[3,5,3,7],[3,8,4,8],[3,9,3,11],[3,12,3,14]]}
["№ строки","Мониторинг несчастных случаев, произошедших на занятиях физической культурой и спортом в общеобразовательных организациях \nРоссийской Федерации"]
[null,"Наименование субъекта РФ"]
[null,"Общая численность обучающихся  в субъекте РФ",{"$nulls":6},"Общее количество случаев травматизма в субъекте РФ"]
[null,"Всего обучающихся по уровням образования","В том числе мальчики",null,null,"В том числе девочки",null,null,"Всего случаев трам","мальчики/юноши",null,null,"девочки/девушки"]
[null,null,"начальное обшее образование","основное общее образование","среднее общее образование","начальное обшее образование","основное общее образование","среднее общее образование",null,"начальное обшее образование","основное общее образование","среднее общее образование","начальное обшее образование","основное общее образование","среднее общее образование"]
[null,1,2,3,4,5,6,7,8,9,10,11,12,13,14]
[1,{"$f":"SUM(C7:H7)","v":5326},1239,1313,131,1245,1209,189,{"$f":"SUM(J7:O7)","v":0},0,0,0,0,0,0]

{"sheet":"Лист6","index":2,"n_rows":86,"n_cols":1,"rows_kept":86,"hidden":true}
["Наименование субъекта РФ"]
["Республика Адыгея "]
["Республика Алтай"]
["Республика Башкортостан"]
["Республика Бурятия"]
["Республика Дагестан"]
["Республика Ингушетия"]
["Кабардино-Балкарская Республика"]
["Республика Калмыкия"]
["Карачаево-Черкесская Республика"]
["Республика Карелия"]
["Республика Коми"]
["Республика Крым"]
["Республика Марий Эл"]
["Республика Мордовия"]
["Республика Саха (Якутия)"]
["Республика Северная Осетия-Алания"]
["Республика Татарстан "]
["Республика Тыва"]
["Удмуртская Республика"]
["Республика Хакасия"]
["Чеченская Республика"]
["Чувашская Республика "]
["Алтайский край"]
["Забайкальский край"]
["Камчатский край"]
["Краснодарский край"]
["Красноярский край"]
["Пермский край"]
["Приморский край"]
["Ставропольский край"]
["Хабаровский край"]
["Амурская область"]
["Архангельская область"]
["Астраханская область"]
["Белгородская область"]
["Брянская область"]
["Владимирская область"]
["Волгоградская область"]
["Вологодская область"]
["Воронежская область"]
["Ивановская область"]
["Иркутская область"]
["Калининградская область"]
["Калужская область"]
["Кемеровская область"]
["Кировская область"]
["Костромская область"]
["Курганская область"]
["Курская область"]
["Ленинградская область"]
["Липецкая область"]
["Магаданская область"]
["Московская область"]
["Мурманская область"]
["Нижегородская область"]
["Новгородская область"]
["Новосибирская область"]
["Омская область"]
["Оренбургская область"]
["Орловская область"]
["Пензенская область"]
["Псковская область"]
["Ростовская область"]
["Рязанская область"]
["Самарская область"]
["Саратовская область"]
["Сахалинская область"]
["Свердловская область"]
["Смоленская область"]
["Тамбовская область"]
["Тверская область"]
["Томская область"]
["Тульская область"]
["Тюменская область"]
["Ульяновская область"]
["Челябинская область"]
["Ярославская область"]
["город федерального значения Севастополь"]
["Еврейская автономная область"]
["Ненецкий автономный округ"]
["Чукотский автономный округ"]
["Ханты-Мансийский автономный округ"]
["Ямало-Ненецкий автономный округ"]
["г. Москва "]
["г. Санкт-Петербург"]

{"sheet":"Раздел 2","index":3,"n_rows":14,"n_cols":36,"rows_kept":14,"merged":[[0,0,0,35],[1,0,5,0],[1,1,4,1],[1,2,4,2],[1,3,3,5],[1,6,3,8],[1,9,3,11],[1,12,3,14],[1,15,3,17],[1,18,3,20],[1,21,3,23],[1,24,3,26],[1,27,3,29],[1,30,3,32],[1,33,3,35],[13,0,13,1]]}
["Количество травм по их классификации"]
["№ строки","Место получения травмы/ Классификация травм","Всего травм по уровням образования","Спортивный зал",null,null,"Спортивная площадка",null,null,"Тренажерный зал",null,null,"Бассейн",null,null,"Раздевалка, подсобное помещение, рекреация",null,null,"Беговая дорожка",null,null,"Прыжковая яма",null,null,"Сектор для метания",null,null,"Лыжная трасса",null,null,"Тир",null,null,"Другое"]
[]
[]
[{"$nulls":3},"начальное обшее образование","основное общее образование","среднее общее образование","начальное обшее образование","основное общее образование","среднее общее образование","начальное обшее образование","основное общее образование","среднее общее образование","начальное обшее образование","основное общее образование","среднее общее образование","начальное обшее образование","основное общее образование","среднее общее образование","начальное обшее образование","основное общее образование","среднее общее образование","начальное обшее образование","основное общее образование","среднее общее образование","начальное обшее образование","основное общее образование","среднее общее образование","начальное обшее образование","основное общее образование","среднее общее образование","начальное обшее образование","основное общее образование","среднее общее образование","начальное обшее образование","основное общее образование","среднее общее образование"]
[null,1,2,3,4,5,6,7,8,9,10,11,12,13,14,15,16,17,18,19,20,21,22,23,24,25,26,27,28,29,30,31,32,33,34,35]
[1,"Ушибы мягких тканей, раны, ссадины",{"$f":"SUM(D7:AJ7)","v":0},0,0,0,0,0,0,0,0,0,0,0,0,0,0,0,0,0,0,0,0,0,0,0,0,0,0,0,0,0,0,0,0,0]
[2,"Растяжение мышц, связок",{"$f":"SUM(D8:AJ8)","v":0},0,0,0,0,0,0,0,0,0,0,0,0,0,0,0,0,0,0,0,0,0,0,0,0,0,0,0,0,0,0,0,0,0]
[3,"Вывихи суставов",0,0,0,0,0,0,0,0,0,0,0,0,0,0,0,0,0,0,0,0,0,0,0,0,0,0,0,0,0,0,0,0,0,0]
[4,"Переломы конечностей",0,0,0,0,0,0,0,0,0,0,0,0,0,0,0,0,0,0,0,0,0,0,0,0,0,0,0,0,0,0,0,0,0,0]
[5,"Травмы головы (сотрясения, рассечение)",0,0,0,0,0,0,0,0,0,0,0,0,0,0,0,0,0,0,0,0,0,0,0,0,0,0,0,0,0,0,0,0,0,0]
[6,"Травмы позвоночника",0,0,0,0,0,0,0,0,0,0,0,0,0,0,0,0,0,0,0,0,0,0,0,0,0,0,0,0,0,0,0,0,0,0]
[7,"Прочие травмы (пальцы, глаза, нос)",0,0,0,0,0,0,0,0,0,0,0,0,0,0,0,0,0,0,0,0,0,0,0,0,0,0,0,0,0,0,0,0,0,0]
["ВСЕГО:",null,0,{"$f":"SUM(D7:D13)","v":0},{"$f":"SUM(E7:E13)","v":0},0,0,0,0,0,0,0,0,0,0,0,0,0,0,0,0,0,0,0,0,0,0,0,0,0,0,0,0,0,0,0]

{"sheet":"Раздел 3","index":4,"n_rows":39,"n_cols":47,"rows_kept":39,"merged":[[0,0,0,46],[1,0,6,0],[1,1,5,1],[1,2,5,2],[1,3,4,6],[1,7,4,10],[1,11,4,14],[1,15,4,18],[1,19,4,22],[1,23,4,26],[1,27,4,30],[1,31,4,34],[1,35,4,38],[1,39,4,42],[1,43,4,46]]}
["Количество травм, полученных в процессе образовательной деятельности "]
["№ строки","Место получения травмы/\nформа физкультурно-спортивной деятельности, \nразделы программы, виды деятельности\n\n","Всего травм","Спортивный зал",{"$nulls":3},"Спортивная площадка",{"$nulls":3},"Тренажерный зал",{"$nulls":3},"Бассейн",{"$nulls":3},"Раздевалка, подсобное помещение, рекреация",{"$nulls":3},"Беговая дорожка",{"$nulls":3},"Прыжковая яма",{"$nulls":3},"Сектор для метания",{"$nulls":3},"Лыжная трасса",{"$nulls":3},"Тир",{"$nulls":3},"Другое"]
[]
[]
[]
[{"$nulls":3},"Урок","Внеурочная деятельность","Дополнительное образование","Соревновательная деятельность","Урок","Внеурочная деятельность","Дополнительное образование","Соревновательная деятельность","Урок","Внеурочная деятельность","Дополнительное образование","Соревновательная деятельность","Урок","Внеурочная деятельность","Дополнительное образование","Соревновательная деятельность","Урок","Внеурочная деятельность","Дополнительное образование","Соревновательная деятельность","Урок","Внеурочная деятельность","Дополнительное образование","Соревновательная деятельность","Урок","Внеурочная деятельность","Дополнительное образование","Соревновательная деятельность","Урок","Внеурочная деятельность","Дополнительное образование","Соревновательная деятельность","Урок","Внеурочная деятельность","Дополнительное образование","Соревновательная деятельность","Урок","Внеурочная деятельность","Дополнительное образование","Соревновательная деятельность","Урок","Внеурочная деятельность","Дополнительное образование","Соревновательная деятельность"]
[null,1,2,3,4,5,6,7,8,9,10,11,12,13,14,15,16,17,18,19,20,21,22,23,24,25,26,27,28,29,30,31,32,33,34,35,36,37,38,39,40,41,42,43,44,45,46]
[1,"Л/атлетика:",{"$f":"SUM(D8:AU8)","v":0},{"$f":"D9+D10+D11+D12+D13+D14","v":0},0,0,0,0,0,0,0,0,0,0,0,0,0,0,0,0,0,0,0,0,0,0,0,0,0,0,0,0,0,0,0,0,0,0,0,0,0,0,0,0,0,0,0]
[2,"бег на корот.дист.",{"$f":"SUM(D9:AU9)","v":0},0,0,0,0,0,0,0,0,0,0,0,0,0,0,0,0,0,0,0,0,0,0,0,0,0,0,0,0,0,0,0,0,0,0,0,0,0,0,0,0,0,0,0,0]
[3,"бег на длин. дист.",0,0,0,0,0,0,0,0,0,0,0,0,0,0,0,0,0,0,0,0,0,0,0,0,0,0,0,0,0,0,0,0,0,0,0,0,0,0,0,0,0,0,0,0,0]
[4,"прыжки в длину с места",0,0,0,0,0,0,0,0,0,0,0,0,0,0,0,0,0,0,0,0,0,0,0,0,0,0,0,0,0,0,0,0,0,0,0,0,0,0,0,0,0,0,0,0,0]
[5,"прыжки в длину с разбега",0,0,0,0,0,0,0,0,0,0,0,0,0,0,0,0,0,0,0,0,0,0,0,0,0,0,0,0,0,0,0,0,0,0,0,0,0,0,0,0,0,0,0,0,0]
[6,"прыжки в высоту с разбега",0,0,0,0,0,0,0,0,0,0,0,0,0,0,0,0,0,0,0,0,0,0,0,0,0,0,0,0,0,0,0,0,0,0,0,0,0,0,0,0,0,0,0,0,0]
[7,"метание",0,0,0,0,0,0,0,0,0,0,0,0,0,0,0,0,0,0,0,0,0,0,0,0,0,0,0,0,0,0,0,0,0,0,0,0,0,0,0,0,0,0,0,0,0]
[8,"Гимнастика:",0,{"$f":"D16+D17+D18+D19+D20","v":0},{"$f":"E16+E17+E18+E19+E20","v":0},0,0,0,0,0,0,0,0,0,0,0,0,{"$f":"R16+R17+R18+R19+R20","v":0},{"$f":"S16+S17+S18+S19+S20","v":0},{"$f":"T16+T17+T18+T19+T20","v":0},{"$f":"U16+U17+U18+U19+U20","v":0},{"$f":"V16+V17+V18+V19+V20","v":0},{"$f":"W16+W17+W18+W19+W20","v":0},{"$f":"X16+X17+X18+X19+X20","v":0},{"$f":"Y16+Y17+Y18+Y19+Y20","v":0},{"$f":"Z16+Z17+Z18+Z19+Z20","v":0},{"$f":"AA16+AA17+AA18+AA19+AA20","v":0},{"$f":"AB16+AB17+AB18+AB19+AB20","v":0},{"$f":"AC16+AC17+AC18+AC19+AC20","v":0},{"$f":"AD16+AD17+AD18+AD19+AD20","v":0},{"$f":"AE16+AE17+AE18+AE19+AE20","v":0},{"$f":"AF16+AF17+AF18+AF19+AF20","v":0},{"$f":"AG16+AG17+AG18+AG19+AG20","v":0},{"$f":"AH16+AH17+AH18+AH19+AH20","v":0},{"$f":"AI16+AI17+AI18+AI19+AI20","v":0},{"$f":"AJ16+AJ17+AJ18+AJ19+AJ20","v":0},{"$f":"AK16+AK17+AK18+AK19+AK20","v":0},{"$f":"AL16+AL17+AL18+AL19+AL20","v":0},{"$f":"AM16+AM17+AM18+AM19+AM20","v":0},{"$f":"AN16+AN17+AN18+AN19+AN20","v":0},{"$f":"AO16+AO17+AO18+AO19+AO20","v":0},{"$f":"AP16+AP17+AP18+AP19+AP20","v":0},{"$f":"AQ16+AQ17+AQ18+AQ19+AQ20","v":0},{"$f":"AR16+AR17+AR18+AR19+AR20","v":0},{"$f":"AS16+AS17+AS18+AS19+AS20","v":0},{"$f":"AT16+AT17+AT18+AT19+AT20","v":0},{"$f":"AU16+AU17+AU18+AU19+AU20","v":0}]
[9,"акробатика",0,{"$nulls":33},0,0,0,0,0,0,0,0,0,0,0]
[10,"гимнастика (на спорт. снарядах)",0,{"$nulls":33},0,0,0,0,0,0,0,0,0,0,0]
[11,"фитнес-аэробика",0,{"$nulls":33},0,0,0,0,0,0,0,0,0,0,0]
[12," акробатический рок-н-рол",0,{"$nulls":33},0,0,0,0,0,0,0,0,0,0,0]
[13,"другое",0,{"$nulls":33},0,0,0,0,0,0,0,0,0,0,0]
[14,"Спорт.игры:",0,{"$f":"D22+D23+D24+D25+D26+D27+D28+D29+D30","v":0},0,0,0,0,0,0,0,0,0,0,0,0,0,0,0,0,0,0,0,0,0,0,0,0,0,0,0,0,0,0,0,0,0,0,0,0,0,0,0,0,0,0,0]
[15,"футбол/мини-футбол",0,{"$nulls":33},0,0,0,0,0,0,0,0,0,0,0]
[16,"баскетбол",0,{"$nulls":33},0,0,0,0,0,0,0,0,0,0,0]
[17,"волейбол",0,{"$nulls":33},0,0,0,0,0,0,0,0,0,0,0]
[18," тег-регби",0,{"$nulls":33},0,0,0,0,0,0,0,0,0,0,0]
[19,"лапта",0,{"$nulls":33},0,0,0,0,0,0,0,0,0,0,0]
[20,"городки",0,{"$nulls":33},0,0,0,0,0,0,0,0,0,0,0]
[21,"бадминтон",0,{"$nulls":33},0,0,0,0,0,0,0,0,0,0,0]
[22,"настол. теннис",0,{"$nulls":33},0,0,0,0,0,0,0,0,0,0,0]
[23,"другое",0,{"$nulls":33},0,0,0,0,0,0,0,0,0,0,0]
[24,"Плавание",0,{"$nulls":33},0,0,0,0,0,0,0,0,0,0,0]
[25,"Единоборства:",0,{"$f":"D33+D34+D35","v":0},{"$f":"E33+E34+E35","v":0},0,0,0,0,0,0,0,0,0,0,0,0,{"$f":"R33+R34+R35","v":0},{"$f":"S33+S34+S35","v":0},{"$f":"T33+T34+T35","v":0},{"$f":"U33+U34+U35","v":0},{"$f":"V33+V34+V35","v":0},{"$f":"W33+W34+W35","v":0},{"$f":"X33+X34+X35","v":0},{"$f":"Y33+Y34+Y35","v":0},{"$f":"Z33+Z34+Z35","v":0},{"$f":"AA33+AA34+AA35","v":0},{"$f":"AB33+AB34+AB35","v":0},{"$f":"AC33+AC34+AC35","v":0},{"$f":"AD33+AD34+AD35","v":0},{"$f":"AE33+AE34+AE35","v":0},{"$f":"AF33+AF34+AF35","v":0},{"$f":"AG33+AG34+AG35","v":0},{"$f":"AH33+AH34+AH35","v":0},{"$f":"AI33+AI34+AI35","v":0},{"$f":"AJ33+AJ34+AJ35","v":0},{"$f":"AK33+AK34+AK35","v":0},{"$f":"AL33+AL34+AL35","v":0},{"$f":"AM33+AM34+AM35","v":0},{"$f":"AN33+AN34+AN35","v":0},{"$f":"AO33+AO34+AO35","v":0},{"$f":"AP33+AP34+AP35","v":0},{"$f":"AQ33+AQ34+AQ35","v":0},{"$f":"AR33+AR34+AR35","v":0},{"$f":"AS33+AS34+AS35","v":0},{"$f":"AT33+AT34+AT35","v":0},{"$f":"AU33+AU34+AU35","v":0}]
[26,"самбо",0,{"$nulls":33},0,0,0,0,0,0,0,0,0,0,0]
[27,"дзюдо",0,{"$nulls":33},0,0,0,0,0,0,0,0,0,0,0]
[28,"другое",0,{"$nulls":33},0,0,0,0,0,0,0,0,0,0,0]
[29,"Лыжная подгот.",0,{"$nulls":33},0,0,0,0,0,0,0,0,0,0,0]
[30,"Фигурн.катание",0,{"$nulls":33},0,0,0,0,0,0,0,0,0,0,0]
[31,"Другое",0,{"$nulls":33},0,0,0,0,0,0,0,0,0,0,0]
[32,"ВСЕГО",0,{"$f":"D8+D15+D21+D31+D32+D36+D37+D38","v":0},0,0,0,0,0,0,0,0,0,0,0,0,0,0,0,0,0,0,0,0,0,0,0,0,0,0,0,0,0,0,0,0,0,0,0,0,0,0,0,0,0,0,0]

{"sheet":"Раздел 4","index":5,"n_rows":8,"n_cols":9,"rows_kept":8,"merged":[[0,0,1,8],[2,0,3,0]]}
["Причины получения травм"]
[]
["№ строки","Уровень образования/причины травм","Всего ","Нарушения, допущенные педагогом","Несоответствие спортивного инвентаря возрастным особенностям обучающегося","Форсированное обучение","Несоответствие места проведения занятия нормам СанПиН","Нарушение обучающимся правил техники безопасности","Другое"]
[null,1,2,3,4,5,6,7,8]
[1,"Начальное обшее образование",{"$f":"SUM(D5:I5)","v":0},0,0,0,0,0]
[2,"Основное общее образование",{"$f":"SUM(D6:I6)","v":0},0,0,0,0,0]
[3,"Среднее общее образование",0,0,0,0,0,0]
[4,"ВСЕГО",0,{"$f":"SUM(D5:D7)","v":0},{"$f":"SUM(E5:E7)","v":0},0,0,0,0]

{"sheet":"Раздел 5","index":6,"n_rows":5,"n_cols":12,"rows_kept":5,"merged":[[0,0,0,11],[1,0,3,0],[1,1,2,1],[1,2,1,5],[1,6,1,11]]}
["Данные о педагогах, на уроках (занятиях) которых произошли случаи травматизма"]
["№ строки","Общее число педагогов, на уроках (занятиях) которых получены травмы","Образование педагога (учителя/инструктора/ \nпедагога дополнительного образования)",{"$nulls":3},"Педагогический стаж"]
[null,null,"Среднее специальное (профильное)","Незаконченное высшее (профильное)","Высшее (профильное)","Другое","До 5 лет","До 10 лет","До 15 лет","До 20 лет","До 25 лет","Более 25 лет"]
[null,1,2,3,4,5,6,7,8,9,10,11]
[1,{"$f":"C5+D5+E5+F5","v":0},0,0,0,0,0,0,0,0,0,0]